Cogmind - Beta 13 @@@ ROGUE MODE // 2024.05.09 @ 17:13:01 Player: Bzilon Result: Destroyed by L-31 Rogue with Katana Performance ------------- Evolutions (1) 500 Regions Visited (4) 800 Robots Destroyed (13) 65 Value Destroyed (262) 262 Prototype IDs (0) 0 Alien Tech Used (0) 0 Bonus (0) 0 TOTAL SCORE: 1627 Bonus ------- Follower Combat Kills 40 Friendly Fire -40 Cogmind --------- Core Integrity 0/400 Matter 300/300 Energy 100/100 System Corruption 2% Temperature Cool (0) Movement Core (50) Location -9/Mines Parts ------- > --- POWER (2) -------- (None) > --- PROPULSION (3) --- (None) > --- UTILITY (2) ------ (None) > --- WEAPON (2) ------- (None) > --- INVENTORY (5) ---- Large Storage Unit Weight Redist. System Hardened Light Armor Plating Peak State ------------ > --- POWER ------------ Ion Engine Light Ion Engine > --- PROPULSION ------- Light Treads Light Treads > --- UTILITY ---------- Small Storage Unit Shield Generator > --- WEAPON ----------- Medium Laser Plasma Cutter > --- INVENTORY -------- Large Storage Unit Weight Redist. System Light Armor Plating Hardened Light Armor Plating Hardened Light Armor Plating Shield Generator Small Laser [Rating: 11] Favorites ----------- Power Ion Engine Engine Ion Engine Power Core Light Nuclear Core Propulsion Light Treads Treads Light Treads Leg Aluminum Leg Utility Small Storage Unit Device Shield Generator Storage Small Storage Unit Protection Light Armor Plating Weapon Medium Laser Energy Gun Medium Laser Launcher Grenade Launcher Special Weapon Plasma Cutter Build | -11 -10 -10 -9 -9 ------- Run | Yrd Mat Min Mat Min Slots Evolved 2 | . . . 2 . Power 1 | . . . 1 . Propulsion 1 | . . . 1 . Utility . | . . . . . Weapon . | . . . . . Parts Attached 21 | 6 2 . 2 11 Power 3 | 1 . . 1 1 Engine 2 | 1 . . 1 . Core 1 | . . . . 1 Reactor . | . . . . . Propulsion 5 | 2 . . . 3 Treads 2 | 2 . . . . Leg 3 | . . . . 3 Wheel . | . . . . . Hover . | . . . . . Flight . | . . . . . Utility 6 | 1 1 . . 4 Device 2 | . 1 . . 1 Storage 1 | 1 . . . . Processor . | . . . . . Hackware . | . . . . . Protection 3 | . . . . 3 Artifact . | . . . . . Weapon 7 | 2 1 . 1 3 Energy Gun 5 | 2 . . 1 2 Energy Cannon . | . . . . . Ballistic Gun . | . . . . . Ballistic Cannon . | . . . . . Launcher 1 | . 1 . . . Special Weapon 1 | . . . . 1 Impact Weapon . | . . . . . Slashing Weapon . | . . . . . Piercing Weapon . | . . . . . Special Melee Weapon . | . . . . . Unidentified Prototypes . | . . . . . Parts Lost 16 | . 1 . 1 14 Power 3 | . . . . 3 Propulsion 4 | . . . . 4 Utility 4 | . . . . 4 Weapon 5 | . 1 . 1 3 Highest Loss Streak 11 | . 1 . 1 11 To Critical Strikes . | . . . . . Average Slot Usage (%) 80 | . 98 100 77 62 Engine 12 | . 14 14 12 11 Treads 20 | . 28 28 22 11 Leg 3 | . . . . 7 Device 11 | . 13 14 11 8 Storage 12 | . 14 14 11 11 Energy Gun 14 | . 23 14 15 10 Launcher 4 | . 3 14 5 . Naked Turns . | . . . . . Heaviest Build 18 | 14 17 17 18 18 Greatest Support 40 | 40 40 40 40 40 Greatest Overweight (x) 1 | . . . . 1 Average Overweight (x) . | . . . . . Largest Inventory Capacity 8 | 8 8 8 8 8 Average Capacity 7 | 7 8 8 8 8 Most Carried 7 | 5 6 5 7 7 Average Carried 4 | . 5 5 5 5 Final Capacity 8 | 8 8 8 8 5 Final Carried 6 | 1 5 5 6 3 Class Distribution -------------------- 100% | Mutant Dominant Class ---------------- Mutant | -10/Materials Mutant | -10/Mines Mutant | -9/Materials Mutant | -9/Mines Resources | -11 -10 -10 -9 -9 ----------- Run | Yrd Mat Min Mat Min Matter Collected 375 | 237 58 40 35 5 Remotely . | . . . . . Salvage Created 300 | . 168 26 40 66 Parts 25 | . 18 . 4 3 Haulers Intercepted . | . . . . . Recyclers Shooed . | . . . . . Parts Field Recycled . | . . . . . Retrieved Matter . | . . . . . Parts Self-Destructed . | . . . . . Prevented . | . . . . . Kills | -11 -10 -10 -9 -9 ------- Run | Yrd Mat Min Mat Min Combat Hostiles Destroyed 18 | . 6 8 2 2 Guns 8 | . 3 2 2 1 AOE 9 | . 3 6 . . Classes Destroyed 5 | . 3 1 1 . Worker 1 | . . . 1 . Watcher 2 | . 2 . . . Swarmer 6 | . 4 . 2 . Grunt 4 | . 2 . . 2 Assembled 8 | . . 8 . . Best Kill Streak 8 | . 5 8 2 1 Combat Bots Only 8 | . 4 8 2 1 Max Kills in Single Turn 3 | . 3 2 1 1 Gunslinging . | . . . . . Exploded 3 | . 3 2 . . Melee . | . . . . . Uniques/NPCs Destroyed . | . . . . . Combat | -11 -10 -10 -9 -9 -------- Run | Yrd Mat Min Mat Min Hostile Shots Fired 199 | . 72 15 7 105 Missed 50 | . 21 8 . 21 Damage Taken 1829 | . 350 68 80 1331 Core 506 | . 86 9 5 406 Absorbed by Shields 286 | . 126 28 31 101 Core Remaining (%) 81 | 100 . 62 . . Volleys Fired 53 | . 19 10 5 19 Largest 2 | . 2 1 2 2 Hottest 90 | . 90 50 90 70 Shots Fired 72 | . 29 10 8 25 Gun 55 | . 27 6 6 16 Cannon . | . . . . . Launcher 8 | . 2 4 2 . Special 9 | . . . . 9 Kinetic . | . . . . . Thermal 54 | . 17 6 6 25 Explosive 8 | . 2 4 2 . Electromagnetic 10 | . 10 . . . Robot Hit Streak 9 | . 3 9 3 8 Robot Miss Streak 3 | . 3 1 2 1 Penetration Max . | . . . . . Secondary Targets 1 | . 1 . . . Max Gunslinging Chain 1 | . 1 . . . Shots Hit Robots 48 | . 14 7 5 22 Core Hits 38 | . 12 14 5 7 Critical Kills . | . . . . . Critical Parts Destroyed . | . . . . . Critical Strikes 2 | . . 2 . . Burn 2 | . . 2 . . Melee Attacks . | . . . . . Impact . | . . . . . Slashing . | . . . . . Piercing . | . . . . . Sneak Attacks . | . . . . . Combat Hostiles . | . . . . . Follow-up Attacks . | . . . . . Damage Inflicted 1077 | . 301 374 120 282 Guns 466 | . 185 77 45 159 Cannons . | . . . . . Explosions 488 | . 116 297 75 . Melee . | . . . . . Ramming 34 | . . . . 34 Kinetic . | . . . . . Thermal 482 | . 112 77 45 248 Explosive 488 | . 116 297 75 . Electromagnetic 73 | . 73 . . . Impact . | . . . . . Slashing . | . . . . . Piercing . | . . . . . Highest Corruption . | . . . . . Average Corruption . | . . . . . Corruption Purged . | . . . . . Corruption Blocked . | . . . . . Overload Shots . | . . . . . Overflow Damage 10 | . . 1 9 . Projectiles . | . . . . . Explosions 10 | . . 1 9 . Melee . | . . . . . Knockbacks 1 | . . . . 1 Impact 1 | . . . . 1 Kinetic . | . . . . . Secondary . | . . . . . Self-Inflicted Damage 59 | . . 7 41 11 Shots 2 | . . 1 1 . Rammed 15 | . . . . 15 Targets Rammed 18 | . . . . 18 Kicked 3 | . . . . 3 Crushed . | . . . . . Highest Temperature 234 | . 234 42 63 57 Average Temperature 56 | . 91 24 34 28 Received Heat Transfer 485 | . 60 . 19 406 Siege Activations . | . . . . . Robots Corrupted . | . . . . . Combat Hostiles . | . . . . . Parts Fried . | . . . . . Impact Corruptions . | . . . . . Robots Melted 1 | . . . . 1 Combat Hostiles 1 | . . . . 1 Parts Melted 3 | . 2 . . 1 Heat Transferred 1521 | . 333 370 112 706 Parts Sabotaged . | . . . . . Parts Stolen . | . . . . . Parts Stripped . | . . . . . Power Chain Reactions . | . . . . . Alert | -11 -10 -10 -9 -9 ------- Run | Yrd Mat Min Mat Min Peak Influence 219 | . 219 102 166 84 Initial 85 | . . 85 39 64 Average 60 | . 83 93 81 38 Maximum Alert Level 1 | . 1 . . . Low Security (%) 97 | 100 84 100 100 100 Level 1 2 | . 15 . . . Level 2 . | . . . . . Level 3 . | . . . . . Level 4 . | . . . . . Level 5 . | . . . . . High Security . | . . . . . Max Security . | . . . . . Squads Dispatched 2 | . 1 . 1 . Investigation 1 | . 1 . . . Extermination . | . . . . . Reinforcement 1 | . . . 1 . Assault . | . . . . . Garrison . | . . . . . Intercept . | . . . . . Searches Triggered . | . . . . . Construction Impeded . | . . . . . Haulers Reinforced . | . . . . . Active Scanning Responses . | . . . . . Cargo Convoy Interrupts . | . . . . . Stealth | -11 -10 -10 -9 -9 --------- Run | Yrd Mat Min Mat Min Distress Signals 3 | . 2 . 1 . Communications Jammed . | . . . . . Distress Signals . | . . . . . Times Spotted 29 | . 10 7 5 7 Peak Tracking Total 5 | . 5 5 3 5 Tactical Retreats 1 | . . . . 1 Traps | -11 -10 -10 -9 -9 ------- Run | Yrd Mat Min Mat Min Traps Triggered 1 | . 1 . . . Indirectly . | . . . . . Trap Hack Attempts . | . . . . . Triggered . | . . . . . Disarmed . | . . . . . Reprogrammed . | . . . . . Reused . | . . . . . Traps Extracted . | . . . . . Installed . | . . . . . Triggered . | . . . . . Machines | -11 -10 -10 -9 -9 ---------- Run | Yrd Mat Min Mat Min Machines Disabled 2 | . 2 . . . Max in Single Turn 1 | . 1 . . . Machines Repaired . | . . . . . Machines Dismantled . | . . . . . Machines Sabotaged . | . . . . . Overloaded Fab Kills . | . . . . . Hacking | -11 -10 -10 -9 -9 --------- Run | Yrd Mat Min Mat Min Machines Accessed . | . . . . . Terminals . | . . . . . Fabricators . | . . . . . Repair Stations . | . . . . . Recycling Units . | . . . . . Scanalyzers . | . . . . . Garrison Access . | . . . . . Total Hacks . | . . . . . Successful . | . . . . . Failed . | . . . . . Catastrophic . | . . . . . Database Lockouts . | . . . . . Manual . | . . . . . Terminals . | . . . . . Fabricators . | . . . . . Repair Stations . | . . . . . Recycling Units . | . . . . . Scanalyzers . | . . . . . Garrison Access . | . . . . . Terminal Hacks . | . . . . . Fabricator Hacks . | . . . . . Repair Station Hacks . | . . . . . Recycling Unit Hacks . | . . . . . Scanalyzer . | . . . . . Garrison Access Hacks . | . . . . . Unauthorized Hacks . | . . . . . Terminals . | . . . . . Fabricators . | . . . . . Repair Stations . | . . . . . Recycling Units . | . . . . . Scanalyzers . | . . . . . Garrison Access . | . . . . . Data Cores Recovered . | . . . . . Used . | . . . . . Hacking Detections . | . . . . . Full Trace Events . | . . . . . Feedback Events . | . . . . . Feedback Blocked . | . . . . . Robot Schematics Acquired . | . . . . . Robots Built . | . . . . . Authchips . | . . . . . Time . | . . . . . Total Robot Build Rating . | . . . . . Part Schematics Acquired . | . . . . . Parts Built . | . . . . . Authchips . | . . . . . Time . | . . . . . Total Part Build Rating . | . . . . . Parts Repaired . | . . . . . Time . | . . . . . Parts Recycled . | . . . . . Recycled Matter . | . . . . . Retrieved Matter . | . . . . . Retrieved Components . | . . . . . Parts Scanalyzed . | . . . . . Part Schematics Acquired . | . . . . . Parts Damaged . | . . . . . Bothacking | -11 -10 -10 -9 -9 ------------ Run | Yrd Mat Min Mat Min Used RIF Installer . | . . . . . Robots Hacked . | . . . . . Non-combat . | . . . . . Combat . | . . . . . Robot Hacks Applied . | . . . . . Relay Couplers Released . | . . . . . Fabnet Peak Effective % . | . . . . . Robots Rewired . | . . . . . Allies Hacked . | . . . . . Hacks Repelled . | . . . . . Allies | -11 -10 -10 -9 -9 -------- Run | Yrd Mat Min Mat Min Total Allies 1 | . . 1 . . Largest Group 1 | . . 1 1 1 Highest-Rated Group 31 | . . 31 31 31 Highest-Rated Ally 31 | . . 31 31 31 Total Orders . | . . . . . Ally Attacks 6 | . . . 6 . Total Damage 106 | . . . 106 . Kills 2 | . . . 2 . Allies Corrupted . | . . . . . Allies Melted . | . . . . . Intel | -11 -10 -10 -9 -9 ------- Run | Yrd Mat Min Mat Min Robot Analysis Total . | . . . . . Derelict Logs Recovered . | . . . . . Drone Launches . | . . . . . Drone Recoveries . | . . . . . Exploration | -11 -10 -10 -9 -9 ------------- Run | Yrd Mat Min Mat Min Turns Passed 1059 | 91 189 214 164 401 Spaces Moved 563 | 57 76 122 92 216 Core 13 | 11 . . . 2 Treads 433 | 46 76 122 92 97 Legs 117 | . . . . 117 Wheels . | . . . . . Hover . | . . . . . Flight . | . . . . . Fastest Speed 50 | 50 160 160 160 100 Average Speed 149 | 138 160 160 160 138 Slowest Speed 190 | 160 160 160 160 190 Overloaded Moves . | . . . . . Propulsion Burnouts . | . . . . . Robots Hopped . | . . . . . Cave-ins Triggered . | . . . . . Exploration Rate (%) 22 | 6 30 22 13 39 Regions Visited 4 Branch Regions 2 Pre-discovered Areas . | . . . . . Known Exits Taken . | . . . . . Unknown Exits Taken 4 | 1 1 1 1 . Scrap Searched 1 | . . . . 1 Spaces Dug . | . . . . . Terrain Destroyed 38 | . . 28 10 . Melee . | . . . . . Projectile . | . . . . . AOE 38 | . . 28 10 . Terrain Rammed . | . . . . . Walls Destroyed . | . . . . . Machines Disabled . | . . . . . Actions | -11 -10 -10 -9 -9 --------- Run | Yrd Mat Min Mat Min Total 693 | 69 115 131 101 277 Wait 20 | . 13 . . 7 Move 559 | 56 75 121 91 216 Hop . | . . . . . Pick Up 22 | 7 6 . 3 6 Fast Attach . | . . . . . Attach 19 | 6 2 . 2 9 Detach . | . . . . . Swap 2 | . . . . 2 Drop . | . . . . . Fire 53 | . 19 10 5 19 Melee . | . . . . . Ram 12 | . . . . 12 Kick 3 | . . . . 3 Crush 3 | . . . . 3 Escape Stasis . | . . . . . Rewire . | . . . . . Trap . | . . . . . Miscellaneous . | . . . . . Route ------- -11/Scrapyard -10/Materials -10/Mines -9/Materials -9/Mines History --------- Turn | Location | Event 2 | -11/Scrapyard | Met Revision 17 17 | -11/Scrapyard | Discovered new exit (range 16) 92 | -11/Scrapyard | Entered Materials 259 | -10/Materials | Discovered new exit (range 13) 281 | -10/Materials | Entered Mines 313 | -10/Mines | Build established: Mutant 366 | -10/Mines | Assembled infested the area 441 | -10/Mines | Discovered new exit (range 15) 442 | -10/Mines | Destroyed 8 combat bots 455 | -10/Mines | Received a Mining Laser from a helpful Derelict 495 | -10/Mines | Entered Materials 495 | -9/Materials | Accompanied by 1 ally 495 | -9/Materials | Evolved 2 slots: Power x1, Propulsion x1 638 | -9/Materials | Discovered new exit (range 12) 659 | -9/Materials | Entered Mines 659 | -9/Mines | Accompanied by 1 ally 913 | -9/Mines | Core integrity fell below 50% 922 | -9/Mines | Lost 11 parts (3p3n2u3w) 1054 | -9/Mines | Core integrity fell below 20% 1060 | -9/Mines | Destroyed by L-31 Rogue with Katana Last Messages --------------- Aluminum Leg severed. Kicked L-31 Rogue. Aluminum Leg destroyed. K-01 Serf collects debris. Slammed into L-31 Rogue. L-31 Rogue knocked back. K-01 Serf collects debris. Slammed into L-31 Rogue. K-01 Serf collects debris. Slammed into L-31 Rogue. K-01 Serf collects debris. Hrd. Light Armor Plating severed. Slammed into L-31 Rogue. K-01 Serf collects debris. Slammed into L-31 Rogue. K-01 Serf collects debris. Slammed into L-31 Rogue. Destabilizing: System corrupted (+2). K-01 Serf collects debris. Sml. Storage Unit destroyed. Map ----- +----------------------------------------------------+ | | | | | | | | | | | | | | | | | | | | | | | | | | | | | | | | | | | | | | | | | ?????????????????????????????????????????????????? | | ?????????????????????????####????????????????????? | | ????????????????????????## ##???????????#######?? | | ???????????????????????## #??????????## ##? | | ???????????????????????# #?????????## #? | | ??????????????????????##%@l #????????## #? | | ????????????????#######% ##???????## #? | | ???????????????## k #######?## #?? | | ???????????????# = g ### #??? | | ???????????????##### ! #???? | | ???????????????????##### ## ##??? | | ???????????????????????## #### ##?? | | ????????????????????????# ##??#### ##? | | ????????????????????????# #??????## #? | | ????????????????????????# #???????## ## | | ????????????????????????# #????????## ### | | ????????????????????????# #?????????###### | | ???????????????????????? ????????????## ## | | ???????????????????????? ???????????## #? | | ??????????????????????? ???????????# ## | | ??????????????????????? #??????????# | | ??????????????????????? ##??????????# ## | | ??????????????????????## ##???????????## ##? | | ???????????????????????###??????????????#### ##? | | ???????????????????????????????????????????## ## | | ????????????????????????????????????????????# # | | ????????????????????????????????????????????## | | ?????????????????????????????????????????????## | | ???????????????????????????????????####??????## | | ??????????????????????????????????## ##?##### | +----------------------------------------------------+ Best States ------------- Heat Dissipation 28 Energy Generation 19 Energy Capacity 275 Matter Stores 300 Matter Capacity 300 Sight Range 16 Terrain Scan Density 10 Armor Coverage 150 Evasion (%) 55 Recoil Reduction 2 Item Schematics ----------------- None Robot Schematics ------------------ None Fabricated ------------ Nothing Alien Tech Used ----------------- None Achievements -------------- I Survived The Infestation Challenges ------------ None Game ------ Seed CatalystFissionPurifier Manual? 0 Play Time 00:13:50 Cumulative 9.3 hours Start 2024.05.09 @ 16:22:22 End 2024.05.09 @ 17:13:01 Sessions 1 Manual Loads 0 Difficulty Rogue Special Mode None Game No. 21 Rogue 21 Adventurer 0 Explorer 0 Win Type - Total 0 Types 0/0/0/0/0/0/0/0/0 Lore% 15 Gallery% 13 Achievement% 12 Wizard Run 0 Options --------- Layout 1 ASCII 0 Keyboard 0 Movement Mouse Keybinds 0 Fullscreen 2 Font 24/Crisp Map View 50x35 Zoom Use 0% Tactical HUD 0 Map Filters NONE Filters NONE Steam 1 RUN: 92d32f9f-e4f6-4e88-b822-4902b7344cf8